[Event "Israel-ch Youth U8-18 2024"]
[Site "Kfar Saba"]
[Date "2024.04.17"]
[Round "3.8"]
[White "Sternfeld, Tomer"]
[Black "Azoulay, Yehonatan"]
[Result "1/2-1/2"]
[ECO "A15"]
[WhiteElo "1866"]
[BlackElo "1987"]
[Annotator "TA"]
[PlyCount "69"]
[EventDate "2024.04.10"]
[EventType "swiss"]
[EventCountry "ISR"]
[SourceTitle "playchess.com"]
[Source "ChessBase"]
[SourceQuality "1"]
[TimeControl "5400+30"]

{[%evp 11,69,0,0,0,-6,0,0,-20,-20,-13,18,8,42,29,31,-30,49,15,82,56,55,30,45,36,63,54,84,-5,14,0,-8,-7,-7,0,67,-18,-23,-26,-28,-17,0,0,0,0,9,5,398,0,0,0,158,0,-6,-87,-97,-92,-12,-62,186,-5732]} 1. Nf3 {[%emt 0:00:03]} Nf6 {[%emt 0:00:05]} 2. g3 {[%emt 0:00:07]} g6 {[%emt 0:00:04]} 3. Bg2 {[%emt 0:00:03]} Bg7 {[%emt 0:00:04]} 4. O-O {[%emt 0:00:09]} O-O {[%emt 0:00:02]} 5. c4 {[%emt 0:00:19]} d6 {[%emt 0:00:04]} 6. d3 {[%emt 0:04:22]} e5 {[%emt 0:00:18]} 7. a3 {[%emt 0:02:36]} a5 {[%emt 0:00:15]} 8. Nc3 {[%emt 0:00:35]} Re8 {[%emt 0:00:16]} 9. Ne1 {[%emt 0:04:25] The position is equal.} c6 {[%emt 0:07:45]} 10. e4 {[%emt 0:05:28]} Ng4 {[%emt 0:01:04]} 11. h3 {[%emt 0:08:44]} Nh6 {[%emt 0:00:26]} 12. Rb1 {[%emt 0:00:41]} f5 {[%emt 0:12:35]} 13. f4 {[%emt 0:17:12]} (13. b4 $14) 13... Bd7 {[%emt 0:05:30]} ({Better is} 13... Nd7 $11) 14. Qc2 {[%emt 0:03:24]} Qc8 {[%emt 0:00:17]} (14... Na6 $11) 15. Kh2 {[%emt 0:07:24]} Na6 {[%emt 0:00:33][%cal Bb8a6,Ba6c5,Bc5e6][%mdl 32]} 16. b4 {[%emt 0:02:29] Wards off Nc5} axb4 {[%emt 0:00:32]} 17. axb4 {[%emt 0:00:08][%cal Ba3b4,Bb4b5][%mdl 32]} Rb8 {[%emt 0:15:48]} 18. b5 {[%emt 0:05:16]} Nc5 {[%emt 0:00:21]} 19. Be3 {[%emt 0:02:27]} (19. fxe5 $1 $16 dxe5 20. Qf2 cxb5 21. Be3 (21. Nxb5 Rf8 $14) (21. cxb5 Be6 $11)) 19... Ne6 {[%emt 0:01:26]} 20. Qd2 {[%emt 0:05:25]} exf4 {[%emt 0:02:19]} 21. gxf4 {[%emt 0:01:45]} Qd8 {[%emt 0:06:20]} 22. Nf3 {[%emt 0:06:52]} Rf8 {[%emt 0:19:18]} (22... Ra8 $11) 23. d4 {[%emt 0:12:36]} (23. e5 $14) 23... fxe4 $11 {[%emt 0:02:32]} 24. Nxe4 {[%emt 0:03:13]} Nf5 {[%emt 0:00:51] Hoping for ...Nxe3.} 25. Bf2 {[%emt 0:00:57]} d5 {[%emt 0:13:16]} 26. cxd5 {[%emt 0:00:18]} cxd5 {[%emt 0:00:06]} 27. Nc3 {[%emt 0:01:57]} Bh6 $36 {[%emt 0:02:27][%mdl 2048] Black is pushing.} 28. Nxd5 {[%emt 0:02:27]} Nd6 $2 {[%emt 0:04:25][%mdl 8192]} (28... Ne7 $11 29. Qa2 Ra8 (29... Nxd5 30. Qxd5 Bxf4+ 31. Kh1 $16) 30. Nxe7+ Qxe7) 29. Ne5 $2 {[%emt 0:02:05]} (29. Bh4 $18) 29... Bxb5 {[%emt 0:03:22]} 30. Rfc1 {[%emt 0:00:27]} Rxf4 $2 {[%emt 0:01:17] [#]} ({Much weaker is} 30... Nxf4 $6 31. Be3 g5 32. Ng4 $18) (30... Bxf4+ $11 31. Nxf4 Nxf4) 31. Be3 $2 {[%emt 0:00:48] White has more active pieces.} (31. Bg3 $1 $16 Qf8 (31... Ne4 $2 32. Qa2 $18) 32. Bxf4 Bxf4+ 33. Nxf4 Qxf4+ 34. Qxf4 Nxf4 35. Rc7) 31... Rxd4 {[%emt 0:01:30]} 32. Qf2 {[%emt 0:01:00]} (32. Qa2 $1 $11 {keeps the balance.} Ra4 33. Qb3) 32... Bxe3 $17 {[%emt 0:00:07]} 33. Nxe3 {[%emt 0:00:21] [#]} Qg5 {[%emt 0:01:08]} (33... Qf8 $1 $17 {[%cal Rf8f2]} 34. Qxf8+ Rxf8 35. Bxb7 Rd2+ 36. Bg2 Nf4) 34. Rxb5 $1 $11 {[%emt 0:01:16][%cal Oc1f1]} Nxb5 $2 {[%emt 0:00:30]} (34... Rf8 $1 $15 {stays ahead.} 35. Qa2 Re8 (35... Nxb5 36. Qxe6+ Kg7 37. Rc5 $11)) 35. Qa2 $4 {[%emt 0:00:41][%mdl 40960] Weighted Error Value: White=0.50/Black=0.57.  Loses game:     	---       	Black=2      Missed win:     	White=2     	---        Mistake:       	White=5     	Black=5      Inaccurate:     	White=2     	Black=4      OK:         	White=7     	Black=7      Best:        	---       	Black=3      Strong:       	White=1     	---       . An unexpected result.} (35. Qf7+ $18 Kh8 36. Qxe6) 1/2-1/2

[Event "Israel-ch Youth U8-18 2024"]
[Site "Kfar Saba"]
[Date "2024.04.17"]
[Round "3.9"]
[White "Magen, Ofek"]
[Black "Afek, Itay"]
[Result "0-1"]
[ECO "E67"]
[WhiteElo "1936"]
[BlackElo "1816"]
[Annotator "TA"]
[PlyCount "108"]
[EventDate "2024.04.10"]
[EventType "swiss"]
[EventCountry "ISR"]
[SourceTitle "playchess.com"]
[Source "ChessBase"]
[SourceQuality "1"]
[TimeControl "5400+30"]

{[%evp 13,108,27,34,11,35,-9,-16,-62,0,-23,20,0,0,-7,-5,-6,9,0,3,-35,-29,-31,0,0,29,14,18,18,24,39,54,32,65,-377,-358,-379,-368,-387,-386,-392,-387,-395,-383,-400,-374,-391,-333,-337,-337,-337,-335,-451,-325,-318,-314,-333,-329,-326,-289,-335,-331,-372,-369,-474,-437,-439,-443,-464,-438,-458,-449,-452,-460,-447,-466,-477,-477,-500,-502,-583,-595,-777,-797,-1119,-1086,-1285,-1256,-1892,-1141,-1660,-1693,-1350,-1318,-29997,-29998,-29998,-29999]} 1. d4 {[%emt 0:00:35]} Nf6 {[%emt 0:00:02]} 2. c4 {[%emt 0:00:05]} g6 {[%emt 0:00:03]} 3. Nc3 {[%emt 0:00:02]} Bg7 {[%emt 0:00:09]} 4. Nf3 {[%emt 0:00:13]} O-O {[%emt 0:00:17]} 5. g3 {[%emt 0:00:52]} d6 {[%emt 0:00:25]} 6. Bg2 {[%emt 0:00:07]} Nbd7 {[%emt 0:00:07]} 7. O-O {[%emt 0:01:42]} Re8 {[%emt 0:00:23]} 8. Re1 {[%emt 0:03:29]} c6 {[%emt 0:00:30]} 9. Bd2 {[%emt 0:01:38]} e5 {[%emt 0:00:17]} 10. e3 {[%emt 0:02:45]} (10. dxe5 $11 dxe5 11. Ng5) 10... Qe7 {[%emt 0:05:29]} (10... Nb6 $15 11. dxe5 dxe5) 11. Rc1 {[%emt 0:03:19]} Nf8 {[%emt 0:01:32] [#]} 12. c5 $1 {[%emt 0:01:30]} dxc5 {[%emt 0:07:11]} 13. Nxe5 {[%emt 0:00:39]} Ne6 {[%emt 0:06:14]} 14. Ne2 {[%emt 0:03:09]} Qc7 {[%emt 0:01:30]} 15. Nc4 {[%emt 0:00:45]} Rd8 {[%emt 0:03:38]} 16. Bc3 {[%emt 0:01:17]} Nd5 {[%emt 0:07:49]} 17. Qc2 {[%emt 0:01:57]} Nxc3 {[%emt 0:02:24]} 18. bxc3 {[%emt 0:02:43]} Bd7 {[%emt 0:03:54]} 19. Red1 {[%emt 0:03:10]} Rab8 {[%emt 0:06:32]} 20. Nd2 {[%emt 0:04:42]} cxd4 {[%emt 0:01:59]} 21. cxd4 {[%emt 0:00:17]} Qa5 {[%emt 0:00:56]} 22. Nc4 {[%emt 0:02:29]} Qh5 {[%emt 0:01:14] [#]} 23. Nd2 $2 {[%emt 0:05:11][%mdl 8192] This costs White the game.} Qxe2 $19 {[%emt 0:02:17]} 24. Bf3 {[%emt 0:01:35]} Qb5 {[%emt 0:01:33]} 25. Rb1 {[%emt 0:00:14]} Qg5 {[%emt 0:01:42]} 26. h4 {[%emt 0:02:21]} Qe7 {[%emt 0:02:31]} 27. Ne4 {[%emt 0:01:01]} f5 {[%emt 0:04:02]} 28. Nc3 {[%emt 0:00:15]} Nc7 {[%emt 0:02:27]} 29. d5 {[%emt 0:01:38]} Nxd5 {[%emt 0:00:38]} 30. Nxd5 {[%emt 0:00:38]} cxd5 {[%emt 0:00:09]} 31. Bxd5+ {[%emt 0:01:31]} Kh8 {[%emt 0:01:04]} 32. Bxb7 {[%emt 0:00:17]} Be6 {[%emt 0:02:57]} 33. Bf3 {[%emt 0:00:06]} Rxd1+ {[%emt 0:01:33]} 34. Rxd1 {[%emt 0:01:01]} Rc8 {[%emt 0:02:29]} 35. Qa4 {[%emt 0:00:29]} Rc7 {[%emt 0:00:49]} 36. Rb1 {[%emt 0:00:30]} Be5 {[%emt 0:01:24]} 37. Rb8+ {[%emt 0:00:35]} Kg7 {[%emt 0:00:41] And now ...Rc1+ would win.} 38. Re8 {[%emt 0:01:42]} Qf7 {[%emt 0:01:58]} 39. Rd8 {[%emt 0:00:36] Prevents Bd7} Bxa2 {[%emt 0:02:07]} 40. Kg2 {[%emt 0:05:22]} Bc3 {[%emt 0:01:23]} 41. h5 {[%emt 0:02:25]} Bc4 {[%emt 0:02:22]} ({Don't take} 41... gxh5 42. Bxh5 Bd5+ (42... Qxh5 $2 43. Qxa2 Qf7 44. Qa4 $19) 43. Bf3 Bxf3+ 44. Kxf3 $19) 42. hxg6 {[%emt 0:01:37]} hxg6 {[%emt 0:00:08]} 43. Qd1 {[%emt 0:00:28]} Qe7 {[%emt 0:01:53][%cal Oc4b3]} 44. Rb8 {[%emt 0:01:25]} a5 {[%emt 0:02:14]} 45. Ra8 {[%emt 0:01:10]} Be6 {[%emt 0:03:40]} 46. Qa4 {[%emt 0:02:55]} g5 {[%emt 0:02:04] ...g4 would now be deadly.} 47. e4 {[%emt 0:03:59]} Rc4 {[%emt 0:03:01]} 48. Qb5 {[%emt 0:02:11]} g4 {[%emt 0:03:26]} 49. Be2 {[%emt 0:03:02]} Rxe4 {[%emt 0:01:39]} 50. Kh2 {[%emt 0:14:24]} Bd7 {[%emt 0:02:40]} 51. Qb3 {[%emt 0:00:56]} Rxe2 {[%emt 0:01:12]} 52. Qxc3+ {[%emt 0:06:01]} Qe5 {[%emt 0:00:25]} 53. Qc1 {[%emt 0:04:24]} Rxf2+ {[%emt 0:00:33]} 54. Kh1 {[%emt 0:00:02]} Qe4+ {[%emt 0:00:27] Weighted Error Value: White=0.93/Black=0.25 (precise) .  Loses game:     	White=1     	---        Mistake:       	White=1     	Black=1      Inaccurate:     	White=5     	Black=4      OK:         	White=5     	Black=17     Best:        	---       	Black=1} 0-1

[Event "Israel-ch Youth U8-18 2024"]
[Site "Kfar Saba"]
[Date "2024.04.17"]
[Round "3.10"]
[White "Gavriel, Adam"]
[Black "Shilon Rahav, Eliran"]
[Result "0-1"]
[ECO "A06"]
[WhiteElo "1699"]
[BlackElo "2116"]
[Annotator "TA"]
[PlyCount "114"]
[EventDate "2024.04.10"]
[EventType "swiss"]
[EventCountry "ISR"]
[SourceTitle "playchess.com"]
[Source "ChessBase"]
[SourceQuality "1"]
[TimeControl "5400+30"]

{[%evp 9,114,-25,-6,7,11,-12,-7,-10,-15,-43,-29,-39,12,-56,18,22,22,10,39,24,23,8,71,0,0,-6,0,-4,-8,-8,-7,-10,0,-9,376,118,136,126,117,-12,-9,-24,79,86,82,0,231,96,204,195,197,103,96,96,223,215,208,133,133,0,0,-208,-164,-389,-382,-419,-419,-668,-540,-1328,-1081,-1578,-1432,-1814,-1738,-2622,-2152,-4390,-5065,-5065,-2786,-29976,-29976,-12792,-12792,-29980,-29981,-29980,-29981,-29983,-29984,-29985,-29985,-29986,-29987,-29987,-29988,-29989,-29987,-29988,-29989,-29989,-29987,-29994,-29994,-29995,-29996]} 1. Nf3 {[%emt 0:00:51]} d5 {[%emt 0:00:13]} 2. b3 {[%emt 0:00:08]} c5 {[%emt 0:00:55]} 3. Bb2 {[%emt 0:00:06]} Nc6 {[%emt 0:00:33]} 4. g3 {[%emt 0:02:02]} d4 {[%emt 0:00:32]} 5. Bg2 {[%emt 0:01:49]} g6 {[%emt 0:01:39]} 6. O-O {[%emt 0:00:29]} Bg7 {[%emt 0:00:18]} 7. e3 {[%emt 0:01:20]} e5 {[%emt 0:00:49]} 8. d3 {[%emt 0:03:55] The position is equal.} Nge7 {[%emt 0:01:52]} 9. Re1 {[%emt 0:13:20]} O-O {[%emt 0:02:05]} 10. Nbd2 {[%emt 0:07:02]} f5 {[%emt 0:03:46]} (10... Bg4 $15) 11. Ba3 {[%emt 0:01:05]} (11. exd4 $11 exd4 12. Nc4) 11... b6 {[%emt 0:05:46]} ({Better is} 11... dxe3 $15 12. fxe3 Nd5) 12. exd4 $11 {[%emt 0:00:42]} exd4 {[%emt 0:00:36]} 13. Nc4 {[%emt 0:05:32]} Bb7 {[%emt 0:04:17]} 14. Ng5 {[%emt 0:02:06][%cal Ob3b4]} Qd7 {[%emt 0:01:19]} 15. Ne6 {[%emt 0:03:13]} Rfe8 {[%emt 0:00:40]} (15... Rf7 $11) 16. Qd2 {[%emt 0:24:26]} (16. Bxc5 $1 $16 {Strongly threatening Nxg7.} bxc5 17. Nxc5) 16... Nd5 {[%emt 0:03:42]} 17. Nxg7 {[%emt 0:03:38]} Kxg7 {[%emt 0:00:23]} 18. Rxe8 {[%emt 0:00:35]} Rxe8 {[%emt 0:00:06]} 19. Re1 {[%emt 0:00:14]} Rxe1+ {[%emt 0:06:29]} 20. Qxe1 {[%emt 0:00:02]} Nc3 {[%emt 0:07:32]} 21. Bc1 {[%emt 0:08:33]} Kg8 $2 {[%emt 0:10:39][%mdl 8192]} (21... Qe7 $11 22. Qxe7+ Nxe7) 22. Bf4 $2 {[%emt 0:02:05]} (22. Bh6 $1 $18 {is the precise move to win.}) 22... Na5 {[%emt 0:04:19]} 23. Bxb7 {[%emt 0:07:41]} Nxb7 {[%emt 0:01:00]} 24. a4 {[%emt 0:02:20]} ({White should play} 24. Qe5 $16 Nd8 25. Bh6) 24... Nd8 $1 {[%emt 0:02:40]} 25. Qe5 {[%emt 0:01:52]} Nf7 {[%emt 0:01:31] Prevents Bh6.} (25... Nc6 $1 $11 26. Qe1 Qe7 27. Qxe7 Nxe7) 26. Qb8+ $16 {[%emt 0:01:24]} Kg7 {[%emt 0:00:29]} 27. Qc7 {[%emt 0:02:47]} (27. Be5+ $16 Nxe5 28. Qxe5+ Kg8 29. a5) 27... Qe6 $2 {[%emt 0:01:52]} (27... Qxc7 $11 {and Black stays safe.} 28. Bxc7 b5 29. axb5 Nxb5) 28. Ne5 {[%emt 0:01:23]} (28. Qxa7 $18 {[%cal Oc4e5] and the rest is easy. Ne5! is the strong threat.} Nd5 29. a5 (29. Be5+ Kh6 $18) 29... bxa5 30. Kf1 (30. Qxa5 Nxf4 31. gxf4 Qe2 $11) (30. Qxc5 Qe1+ 31. Kg2 Nxf4+ 32. gxf4 Qc3 $18)) 28... g5 {[%emt 0:08:59]} 29. Nxf7 $1 $18 {[%emt 0:00:52]} (29. Bxg5 $2 Qxe5 30. Qxa7 Qe6 $19) 29... Qxf7 {[%emt 0:00:05]} 30. Qxf7+ {[%emt 0:00:30]} (30. Be5+ $1 $18 Kg6 31. Qd6+ Kh5 32. h3) 30... Kxf7 $16 {[%emt 0:00:01]} 31. Bxg5 $18 {[%emt 0:00:02][%mdl 4096] Endgame. KB-KN} b5 {[%emt 0:01:58]} (31... a6 $16 32. Kf1 Ke6) 32. axb5 {[%emt 0:00:26]} Ke6 {[%emt 0:00:30]} 33. Bf4 {[%emt 0:00:33]} Nxb5 {[%emt 0:00:27] And now ...Na3 would win.} 34. Kf1 {[%emt 0:00:46]} (34. Bc1 $16) 34... Na3 $1 $11 {[%emt 0:00:19]} 35. Bb8 $2 {[%emt 0:00:10] [#] Black converts the advantage convincingly.} (35. Bc1 $11 {and White has nothing to worry.} Nxc2 36. Bb2) 35... a6 $1 $19 {[%emt 0:00:16]} 36. Ke2 $2 {[%emt 0:00:56]} (36. Ba7 Kd5 37. Bb6 Nxc2 $17) (36. Bc7) 36... Nxc2 {[%emt 0:00:06]} 37. Bc7 {[%emt 0:00:29] [#]} Na1 $1 {[%emt 0:02:10]} 38. Kd2 {[%emt 0:00:30]} (38. Kd1 $142 Kd5 (38... Nxb3 39. Kc2 $11) 39. b4 cxb4 40. Ba5) 38... Kd5 {[%emt 0:00:21]} (38... Nxb3+ 39. Kc2 Kd7 40. Bb6 $14) 39. f3 {[%emt 0:01:21]} Nxb3+ {[%emt 0:00:14]} 40. Kc2 {[%emt 0:00:17]} c4 {[%emt 0:00:05]} 41. g4 {[%emt 0:01:25]} fxg4 {[%emt 0:01:01]} 42. f4 {[%emt 0:00:10]} Nc5 {[%emt 0:00:17]} 43. dxc4+ {[%emt 0:00:08]} Kxc4 {[%emt 0:00:01]} 44. f5 {[%emt 0:00:48]} Ne4 {[%emt 0:01:45]} 45. Bf4 {[%emt 0:00:25]} d3+ {[%emt 0:00:21]} 46. Kd1 {[%emt 0:00:19]} a5 {[%emt 0:00:05] ( -> ...h5)} 47. Be5 {[%emt 0:00:15]} Kd5 {[%emt 0:00:20] Black mates.} 48. f6 {[%emt 0:00:51]} Ke6 {[%emt 0:00:10]} (48... Kxe5 $2 49. f7 $18) 49. Bc7 {[%emt 0:00:08]} a4 {[%emt 0:00:08]} 50. Be5 {[%emt 0:00:32]} Nxf6 {[%emt 0:00:14]} (50... Kxe5 51. f7 a3 (51... Nc3+ $2 52. Ke1 $18) 52. f8=Q $14 (52. f8=R $2 {loses.} a2 $19)) 51. Ba1 {[%emt 0:00:12]} Ne4 {[%emt 0:00:16]} 52. Bb2 {[%emt 0:00:13]} Kd5 {[%emt 0:00:08]} 53. Ba1 {[%emt 0:00:04]} Kc4 {[%emt 0:00:08]} 54. Be5 {[%emt 0:00:04]} a3 {[%emt 0:00:13]} 55. Kc1 {[%emt 0:00:07]} a2 {[%emt 0:00:17]} 56. h3 {[%emt 0:00:20]} Nc3 {[%emt 0:00:12]} 57. Kb2 {[%emt 0:00:16]} d2 {[%emt 0:00:08] Weighted Error Value: White=1.09/Black=0.51.  Loses game:     	White=1     	Black=2      Missed win:     	White=1     	---        Mistake:       	White=9     	Black=6      Inaccurate:     	White=3     	Black=1      OK:         	White=5     	Black=4      Best:        	White=4     	Black=4      Strong:       	White=1     	Black=4} 0-1

[Event "Israel-ch Youth U8-18 2024"]
[Site "Kfar Saba"]
[Date "2024.04.17"]
[Round "3.11"]
[White "Vardi, Daniel"]
[Black "Triger, Eitan"]
[Result "1-0"]
[ECO "C77"]
[WhiteElo "1937"]
[BlackElo "1820"]
[Annotator "TA"]
[PlyCount "73"]
[EventDate "2024.04.10"]
[EventType "swiss"]
[EventCountry "ISR"]
[SourceTitle "playchess.com"]
[Source "ChessBase"]
[SourceQuality "1"]
[TimeControl "5400+30"]

{[%evp 11,73,18,26,0,0,-4,0,-3,10,11,6,6,12,14,11,16,17,5,7,8,93,100,97,100,108,124,104,103,112,110,127,57,88,52,74,34,42,17,7,0,0,0,18,-22,0,0,0,-6,0,-28,0,-137,-130,-122,-60,-96,168,128,543,512,540,534,539,506]} 1. e4 {[%emt 0:00:01]} e5 {[%emt 0:00:05]} 2. Nf3 {[%emt 0:00:05]} Nc6 {[%emt 0:00:04]} 3. Bb5 {[%emt 0:00:02][%cal Bf1b5,Bb5a4,Ba4b3][%mdl 32]} a6 {[%emt 0:00:12]} 4. Ba4 {[%emt 0:00:01]} Nf6 {[%emt 0:00:08]} 5. d3 {[%emt 0:00:11]} b5 {[%emt 0:01:00]} 6. Bb3 {[%emt 0:00:01]} Bc5 {[%emt 0:00:08]} 7. a3 {[%emt 0:00:33]} d6 {[%emt 0:00:21]} 8. h3 {[%emt 0:00:01]} h6 {[%emt 0:00:07]} 9. Nc3 {[%emt 0:00:24] The position is equal.} Bb7 {[%emt 0:03:34]} 10. Be3 {[%emt 0:01:04]} Nd4 {[%emt 0:02:54]} 11. Bxd4 {[%emt 0:01:44]} Bxd4 {[%emt 0:00:07]} 12. Nxd4 {[%emt 0:00:05]} exd4 {[%emt 0:00:07]} 13. Ne2 {[%emt 0:00:16]} c5 {[%emt 0:00:05]} 14. O-O {[%emt 0:02:08]} O-O {[%emt 0:00:07]} 15. f4 {[%emt 0:01:11]} d5 {[%emt 0:01:31]} (15... Qc7 $11) 16. e5 $16 {[%emt 0:01:49]} Nd7 {[%emt 0:00:14]} 17. c3 {[%emt 0:01:41]} dxc3 {[%emt 0:05:44]} 18. bxc3 {[%emt 0:00:46]} Rc8 {[%emt 0:02:46][%cal Od5d4]} 19. d4 {[%emt 0:03:15]} cxd4 {[%emt 0:06:19]} 20. cxd4 {[%emt 0:01:19]} Nb6 {[%emt 0:00:18]} 21. Qd3 {[%emt 0:01:37]} (21. f5 $16) 21... f5 $14 {[%emt 0:05:27]} 22. Rf3 {[%emt 0:08:14] White is more active.} Rc7 {[%emt 0:06:46]} 23. Bc2 {[%emt 0:01:45]} Bc8 {[%emt 0:05:42]} 24. Rg3 {[%emt 0:13:54]} Be6 {[%emt 0:08:53]} 25. Rf1 {[%emt 0:05:49]} Qc8 {[%emt 0:02:43]} 26. Bb1 {[%emt 0:03:28]} Na4 {[%emt 0:01:49][%cal Bb6a4,Ba4b2,Bb2c4][%mdl 32]} 27. Rg6 {[%emt 0:06:52]} Kh7 {[%emt 0:02:35]} 28. Rg4 {[%emt 0:02:32]} Nb2 {[%emt 0:02:16]} 29. Qg3 {[%emt 0:03:38]} Nc4 {[%emt 0:00:33]} 30. Rd1 {[%emt 0:02:22][%cal Bf1d1,Bd1d3,Bd3g3][%mdl 32] Prevents Nd2.} Rff7 {[%emt 0:04:24]} 31. Rh4 {[%emt 0:04:56]} (31. Qf3 $11 {remains equal.}) 31... Qf8 $17 {[%emt 0:04:23]} 32. Rd3 {[%emt 0:02:23]} Rb7 {[%emt 0:03:11]} (32... a5 $17 {And now ...a4 would win.} 33. Kh2 b4 34. axb4 Qxb4) 33. Qg5 {[%emt 0:05:13]} Qe7 $2 {[%emt 0:09:42][%mdl 8192] [#]} (33... Rb6 $17 34. Rg3 Nxa3 35. Qg6+ Kh8) 34. Rg3 $18 {[%emt 0:00:49][%cal Oh4h6] Rxh6+! would kill now.} Qxg5 {[%emt 0:01:11][%mdl 8192]} (34... Rb8 $16) 35. fxg5 {[%emt 0:00:18][%cal Bf4g5,Bg5h6][%mdl 32] White is clearly winning.} Rf8 {[%emt 0:01:19]} 36. Nf4 {[%emt 0:00:53]} Bc8 {[%emt 0:00:49]} 37. gxh6 {[%emt 0:00:16] Weighted Error Value: White=0.21 (precise) /Black=0.46.  Loses game:     	---       	Black=2      Mistake:       	White=2     	Black=2      Inaccurate:     	White=5     	Black=1      OK:         	White=8     	Black=10     Best:        	White=2     	---} 1-0

[Event "Israel-ch Youth U8-18 2024"]
[Site "Kfar Saba"]
[Date "2024.04.17"]
[Round "3.12"]
[White "Dorfman, Michael"]
[Black "Gurevich, Neria"]
[Result "0-1"]
[ECO "B24"]
[WhiteElo "1716"]
[BlackElo "1844"]
[Annotator "NA RC COMBH"]
[PlyCount "36"]
[EventDate "2024.04.10"]
[EventType "swiss"]
[EventCountry "ISR"]
[SourceTitle "playchess.com"]
[Source "ChessBase"]
[SourceQuality "1"]
[TimeControl "5400+30"]

1. e4 {[%emt 0:02:03]} c5 {[%emt 0:00:07]} 2. Nf3 {[%emt 0:00:06]} e6 {[%emt 0:00:08]} 3. d4 {[%emt 0:00:04]} cxd4 {[%emt 0:00:16]} 4. Nxd4 {[%emt 0:00:06]} Nf6 {[%emt 0:00:28]} 5. Nc3 {[%emt 0:00:08]} Nc6 {[%emt 0:00:13]} 6. g3 {[%emt 0:00:41]} d5 {[%emt 0:00:36]} 7. exd5 {[%emt 0:00:12]} exd5 {[%emt 0:00:14]} 8. Bg2 {[%emt 0:00:13]} Bg4 {[%emt 0:01:13]} 9. Nce2 {[%emt 0:00:51]} Bc5 {[%emt 0:03:38]} 10. c3 {[%emt 0:04:28]} O-O {[%emt 0:01:48]} 11. Be3 {[%emt 0:05:18]} Re8 {[%emt 0:04:02]} 12. Qd2 {[%emt 0:20:02]} Bxe2 {[%emt 0:04:59]} 13. Nxe2 {[%emt 0:00:51]} Bxe3 {[%emt 0:00:41]} 14. fxe3 {[%emt 0:00:08]} Ne5 {[%emt 0:05:03]} 15. O-O {[%emt 0:04:55]} Nc4 {[%emt 0:00:43]} 16. Qc1 {[%emt 0:04:50]} Nxe3 {[%emt 0:00:28]} 17. Re1 {[%emt 0:01:36]} Nxg2 {[%emt 0:03:30]} 18. Kxg2 {[%emt 0:08:48]} Qb6 {[%emt 0:00:08]} 0-1

[Event "Israel-ch Youth U8-18 2024"]
[Site "Kfar Saba"]
[Date "2024.04.17"]
[Round "3.13"]
[White "Cohen, Israel"]
[Black "Ben-Haim, Harel"]
[Result "0-1"]
[ECO "B22"]
[WhiteElo "1763"]
[BlackElo "1513"]
[Annotator "NA RC COMBH"]
[PlyCount "98"]
[EventDate "2024.04.10"]
[EventType "swiss"]
[EventCountry "ISR"]
[SourceTitle "playchess.com"]
[Source "ChessBase"]
[SourceQuality "1"]
[TimeControl "5400+30"]

1. e4 {[%emt 0:00:01]} c5 {[%emt 0:00:07]} 2. c3 {[%emt 0:00:07]} e6 {[%emt 0:00:04]} 3. d4 {[%emt 0:00:51]} d5 {[%emt 0:00:05]} 4. dxc5 {[%emt 0:04:27]} Bxc5 {[%emt 0:01:21]} 5. exd5 {[%emt 0:00:33]} exd5 {[%emt 0:00:25]} 6. Nf3 {[%emt 0:00:26]} Nf6 {[%emt 0:00:09]} 7. Bg5 {[%emt 0:01:32]} O-O {[%emt 0:00:50]} 8. Be2 {[%emt 0:01:30]} Bxf2+ {[%emt 0:02:10]} 9. Kf1 {[%emt 0:02:16]} Bb6 {[%emt 0:05:15]} 10. Bxf6 {[%emt 0:08:41]} Qxf6 {[%emt 0:01:01]} 11. Qxd5 {[%emt 0:08:42]} Nc6 {[%emt 0:01:24]} 12. Na3 {[%emt 0:19:15]} Be6 {[%emt 1:23:39]} 13. Qg5 {[%emt 0:04:19]} Qxg5 {[%emt 0:00:00]} 14. Nxg5 {[%emt 0:00:10]} Rad8 {[%emt 0:00:00]} 15. Ke1 {[%emt 0:01:58]} Bf5 {[%emt 0:00:00]} 16. Nc4 {[%emt 0:04:57]} Rfe8 {[%emt 0:00:00]} 17. Kf1 {[%emt 0:06:39]} Rxe2 {[%emt 0:00:00]} 18. Kxe2 {[%emt 0:00:18]} Bd3+ {[%emt 0:00:00]} 19. Kf3 {[%emt 0:00:24]} Bxc4 {[%emt 0:03:30]} 20. Rhe1 {[%emt 0:02:06]} f6 {[%emt 0:00:00]} 21. Ne4 {[%emt 0:03:23]} Ne5+ {[%emt 0:00:00]} 22. Kg3 {[%emt 0:00:12]} Bc7 {[%emt 0:00:00]} 23. Kh4 {[%emt 0:00:46]} g5+ {[%emt 0:00:00]} 24. Nxg5 {[%emt 0:02:59]} fxg5+ {[%emt 0:00:00]} 25. Kxg5 {[%emt 0:00:12]} Kg7 {[%emt 0:00:00]} 26. b3 {[%emt 0:02:09]} Be6 {[%emt 0:00:00]} 27. Rad1 {[%emt 0:01:02]} h6+ {[%emt 0:00:00]} 28. Kh4 {[%emt 0:01:14]} Ng6+ {[%emt 0:00:00]} 29. Kh5 {[%emt 0:00:12]} Nf4+ {[%emt 0:00:00]} 30. Kh4 {[%emt 0:00:07]} Nxg2+ {[%emt 0:00:00]} 31. Kh5 {[%emt 0:00:11]} Rxd1 {[%emt 0:00:00]} 32. Rxd1 {[%emt 0:00:23]} Bg4+ {[%emt 0:00:00]} 33. Kxg4 {[%emt 0:00:10]} Ne3+ {[%emt 0:00:00]} 34. Kf3 {[%emt 0:00:11]} Nxd1 {[%emt 0:00:00]} 35. c4 {[%emt 0:00:08]} Bxh2 {[%emt 0:00:00]} 36. Ke4 {[%emt 0:00:12]} h5 {[%emt 0:00:00]} 37. Kf3 {[%emt 0:00:13]} h4 {[%emt 0:00:00]} 38. Kg4 {[%emt 0:00:05]} Bg3 {[%emt 0:00:00]} 39. Kh3 {[%emt 0:00:06]} Kg6 {[%emt 0:00:00]} 40. Kg2 {[%emt 0:00:11]} Kg5 {[%emt 0:00:00]} 41. Kh3 {[%emt 0:00:16]} Nf2+ {[%emt 0:00:00]} 42. Kg2 {[%emt 0:00:04]} Kg4 {[%emt 0:00:00]} 43. c5 {[%emt 0:00:07]} h3+ {[%emt 0:00:00]} 44. Kf1 {[%emt 0:00:04]} h2 {[%emt 0:00:00]} 45. Ke2 {[%emt 0:00:07]} h1=Q {[%emt 0:00:00]} 46. Kd2 {[%emt 0:00:15]} Qd1+ {[%emt 0:00:00]} 47. Kc3 {[%emt 0:00:04]} Qd3+ {[%emt 0:00:00]} 48. Kb2 {[%emt 0:00:13]} Be5+ {[%emt 0:00:00]} 49. Ka3 {[%emt 0:00:07]} Qa6+ {[%emt 0:00:00]} 0-1